bitfinex-derivatives/quotes_BNBF0:USTF0_20250316
["timestamp","ask_amount","ask_price","bid_price","bid_amount"]
[1742105903160,2.51296556,608.28,607.3,2.13069501]
[1742105903364,2.51296556,608.21,607.31,0.9918621]
[1742105903561,2.51296556,608.21,607.32,0.9918621]
[1742105903864,2.51296556,608.21,607.33,0.9918621]
[1742105904064,2.51296556,608.21,607.34,0.9918621]
[1742105904367,2.51296556,608.21,607.35,0.9918621]
[1742105904568,2.51296556,608.21,607.36,0.9918621]
[1742105904768,2.51296556,608.21,607.37,0.9918621]
[1742105904969,2.51296556,608.21,607.31,2.078]
[1742105905262,2.51296556,608.21,607.32,0.99197622]
[1742105905469,2.51296556,608.28,607.33,0.99214225]
[1742105905662,2.51296556,608.28,607.34,0.99214225]
[1742105905867,2.51296556,608.28,607.35,0.99214225]
[1742105906167,2.51296556,608.28,607.36,0.99214225]
[1742105906365,2.51296556,608.28,607.37,0.99214225]
[1742105906565,2.51296556,608.28,607.31,2.078]
[1742105906767,2.51296556,608.28,607.32,0.99225444]
[1742105907068,2.51296556,608.28,607.33,0.99225444]
[1742105907271,2.51296556,608.28,607.34,0.99225444]
[1742105907564,2.51296556,608.33,607.35,0.99225444]
[1742105907767,2.51296556,608.33,607.35,2.80925444]
[1742105908068,2.51296556,608.33,607.36,0.99225444]
[1742105909969,0.32876352,608.34,607.36,0.99225444]
[1742105911467,0.32876352,608.34,607.35,1.817]
[1742105912072,0.32876352,608.34,607.36,0.99244435]
[1742105912474,0.32876352,608.34,607.37,0.99244435]
[1742105912873,0.32876352,608.34,607.36,0.99244435]
[1742105913075,0.32876352,608.34,607.37,0.99244435]
[1742105913274,0.32876352,608.34,607.38,0.99244435]
[1742105913473,0.32876352,608.34,607.35,1.817]
[1742105913668,0.32876352,608.34,607.36,0.99268261]
[1742105913871,0.32876352,608.34,607.37,0.99268261]
[1742105914077,0.32876352,608.34,607.38,0.99268261]
[1742105914369,0.32876352,608.34,607.37,1.866]
[1742105914571,0.32876352,608.34,607.38,0.99263678]
[1742105914770,0.32876352,608.34,607.37,1.866]
[1742105915174,0.32876352,608.34,607.38,0.9926469]
[1742105915475,0.32876352,608.34,607.37,1.866]
[1742105919174,2.51296556,608.22,607.37,1.866]
[1742105921178,0.32876352,608.34,607.37,1.866]
[1742105930083,0.32876352,608.34,607.38,1.458]
[1742105932678,0.32876352,608.34,607.39,1.504]
[1742105933785,2.51296556,608.21,607.39,1.504]
[1742105935688,2.51296556,608.24,607.39,1.504]
[1742105935883,0.32882297,608.23,607.39,1.504]
[1742105939692,0.32882297,608.23,607.4,1.4]
[1742105940190,2.51296556,608.15,607.4,1.4]
[1742105940585,0.32887164,608.14,607.4,1.4]
[1742105942286,2.8418372,608.14,607.4,1.4]
[1742105944889,2.8418372,608.14,607.4,3.586]
[1742105946088,0.32887164,608.14,607.4,5.264]
[1742105952390,0.32887164,608.14,607.4,6.762]
[1742105958392,2.51296556,608.07,607.4,6.762]
[1742105960103,2.51296556,608.09,607.4,6.762]
[1742105961302,2.51296556,608.09,607.4,9.012]
[1742105961499,2.51296556,608.11,607.4,9.012]
[1742105963907,2.8418372,608.14,607.4,9.012]
[1742105968212,2.51296556,608.13,607.4,9.012]
[1742105969414,0.32887164,608.14,607.4,9.012]
[1742105976714,2.51296556,608.76,607.4,9.012]
[1742105976917,0.32854749,608.74,607.41,0.99241451]
[1742105977113,0.32854749,608.74,607.42,0.99222675]
[1742105977320,0.32854749,608.74,607.43,0.99222675]
[1742105977521,0.32854749,608.74,607.44,0.99222675]
[1742105977722,0.32854749,608.74,607.45,0.99222675]
[1742105978020,3.92563753,608.74,607.46,0.99222675]
[1742105978223,3.59709004,608.73,607.4,3.748]
[1742105978420,0.32856368,608.71,607.41,0.99151988]
[1742105978623,3.92565372,608.71,607.42,0.99151988]
[1742105978824,3.59709004,608.7,607.43,0.99151988]
[1742105979025,0.32857447,608.69,607.44,0.99154235]
[1742105979226,0.32857447,608.69,607.4,3.748]
[1742105979421,0.32857447,608.69,607.41,0.99121732]
[1742105979622,2.51296556,608.68,607.42,0.99121732]
[1742105979826,0.32858527,608.67,607.41,1.891]
[1742105980228,0.32858527,608.67,607.41,4.141]
[1742105980527,0.32858527,608.67,607.41,6.363]
[1742105980721,2.51296556,608.57,607.41,6.363]
[1742105981124,0.32864466,608.56,607.41,6.363]
[1742105996237,2.51296556,608.51,607.41,6.363]
[1742105997032,0.32868247,608.49,607.41,6.363]
[1742105998542,2.51296556,608.36,607.41,6.363]
[1742105998742,0.32875811,608.35,607.41,6.363]
[1742106002047,0.32875811,608.35,607.41,8.425]
[1742106011455,2.51296556,608.3,607.41,8.425]
[1742106011649,0.32879054,608.29,607.41,8.425]
[1742106015553,2.51296556,608.27,607.41,8.425]
[1742106015858,2.84176691,608.27,607.41,8.425]
[1742106016957,0.32880135,608.27,607.41,8.425]
[1742106019357,2.84176691,608.27,607.41,8.425]
[1742106021066,2.51296556,608.24,607.41,8.425]
[1742106022564,2.51296556,608.21,607.41,8.425]
[1742106024069,0.32880135,608.27,607.41,8.425]
[1742106029070,0.32880135,608.27,607.42,0.99306551]
[1742106029270,0.32880135,608.27,607.43,0.99306551]
[1742106029464,0.32880135,608.27,607.44,0.99306551]
[1742106029669,0.32880135,608.27,607.41,2.062]
[1742106029971,0.32880135,608.27,607.42,0.99303268]
[1742106030167,0.32880135,608.27,607.43,0.99303268]
[1742106030368,0.32880135,608.27,607.44,0.99303268]
[1742106030566,0.32880135,608.27,607.45,0.99303268]
[1742106030765,0.32880135,608.27,607.41,2.062]
[1742106030969,0.32880135,608.27,607.42,0.99298386]
[1742106031164,0.32880135,608.27,607.43,0.99298386]
[1742106031371,0.32880135,608.27,607.44,0.99298386]
[1742106031566,0.32880135,608.27,607.41,2.062]
[1742106031765,0.32880135,608.27,607.42,0.99289517]
[1742106031968,0.32880135,608.27,607.41,2.062]
[1742106032171,0.32880135,608.27,607.42,3.25990932]
[1742106032371,0.32880135,608.27,607.43,0.99290932]
[1742106032566,0.32880135,608.27,607.42,2.267]
[1742106032765,0.32880135,608.27,607.43,2.54284015]
[1742106032969,0.32880135,608.27,607.44,0.99282772]
[1742106033165,0.32880135,608.27,607.43,1.55]
[1742106033369,0.32880135,608.27,607.44,0.99276209]
[1742106033570,0.32880135,608.27,607.43,1.55]
[1742106033771,0.32880135,608.27,607.44,0.992762]
[1742106033972,0.32880135,608.27,607.43,1.55]
[1742106034167,0.32880135,608.27,607.44,0.992762]
[1742106034366,0.32880135,608.27,607.43,1.55]
[1742106034567,0.32880135,608.27,607.44,0.99270925]
[1742106034874,0.32880135,608.27,607.43,1.55]
[1742106035069,0.32880135,608.27,607.44,0.99271062]
[1742106035270,0.32880135,608.27,607.45,0.99271062]
[1742106035468,0.32880135,608.27,607.43,1.55]
[1742106035670,0.32880135,608.27,607.44,0.99255482]
[1742106035969,0.32880135,608.27,607.45,0.99252202]
[1742106036168,0.32880135,608.27,607.43,1.55]
[1742106036368,0.32880135,608.27,607.44,0.99254396]
[1742106036568,0.32880135,608.27,607.45,0.99254396]
[1742106036775,0.32880135,608.27,607.43,1.55]
[1742106036974,0.32880135,608.27,607.44,0.99249131]
[1742106037175,0.32880135,608.27,607.45,0.99249131]
[1742106037474,0.32880135,608.27,607.46,0.99249131]
[1742106037675,0.32880135,608.27,607.43,1.55]
[1742106037876,0.32880135,608.27,607.44,0.99241598]
[1742106038073,0.32880135,608.27,607.45,0.99241598]
[1742106038274,0.32880135,608.27,607.46,0.99241598]
[1742106038475,0.32880135,608.27,607.43,1.55]
[1742106038777,0.32880135,608.27,607.44,0.99245878]
[1742106038975,0.32880135,608.27,607.45,0.99245878]
[1742106039177,0.32880135,608.27,607.43,1.55]
[1742106039377,0.32880135,608.27,607.44,0.99243811]
[1742106039577,0.32880135,608.27,607.45,0.99243811]
[1742106039880,0.32880135,608.27,607.43,1.55]
[1742106040074,0.32880135,608.27,607.44,0.99246373]
[1742106040279,0.32880135,608.27,607.45,0.99240079]
[1742106040477,0.32880135,608.27,607.43,1.55]
[1742106040677,0.32880135,608.27,607.44,0.99240079]
[1742106040877,0.32880135,608.27,607.45,0.99240079]
[1742106041074,0.32880135,608.27,607.43,1.55]
[1742106041277,0.32880135,608.27,607.44,0.99240004]
[1742106041478,0.32880135,608.27,607.43,1.55]
[1742106050382,0.32880135,608.27,607.43,3.632]
[1742106050784,0.32880135,608.27,607.43,5.521]
[1742106064099,0.32880135,608.27,607.43,7.169]
[1742106080408,2.51296556,608.21,607.43,7.169]
[1742106083108,0.32880135,608.27,607.43,7.169]
[1742106088320,2.51296556,608.26,607.43,7.169]
[1742106088515,0.32881216,608.25,607.43,7.169]
[1742106089816,2.51296556,608.24,607.43,7.169]
[1742106090117,0.32882297,608.23,607.43,7.169]
[1742106094224,2.51296556,608.07,607.43,7.169]
[1742106096026,2.51296556,608.06,607.43,7.169]
[1742106098135,2.51296556,608.05,607.43,7.169]
[1742106100235,2.51296556,608.06,607.43,7.169]
[1742106102339,2.51296556,608.03,607.43,7.169]
[1742106104140,2.51296556,608.02,607.43,7.169]
[1742106105739,2.51296556,608.0,607.43,7.169]
[1742106110043,2.51296556,608.06,607.43,7.169]
[1742106112243,2.51296556,608.05,607.43,7.169]
[1742106113243,2.51296556,608.05,607.44,0.99393888]
[1742106113440,2.51296556,608.05,607.45,0.99393888]
[1742106113642,2.51296556,608.05,607.46,0.99393888]
[1742106113843,2.51296556,608.05,607.05,0.28635494]
[1742106114047,2.51296556,608.05,607.06,1.62574256]
[1742106114241,2.51296556,608.05,607.07,1.62573713]
[1742106114442,2.51296556,608.05,607.08,1.62573171]
[1742106114743,2.51296556,608.05,607.09,1.62572628]
[1742106114948,2.51296556,608.05,607.1,1.62572085]
[1742106115248,0.32882297,608.23,607.11,1.62571543]
[1742106115448,0.32882297,608.23,607.12,1.62571]
[1742106115748,0.32882297,608.23,607.13,2.76662863]
[1742106115941,0.32882297,608.23,607.14,0.99392911]
[1742106116142,0.32882297,608.23,607.15,1.29628584]
[1742106116447,0.32882297,608.23,607.16,1.29628584]
[1742106116748,0.32882297,608.23,607.17,2.43636115]
[1742106116949,0.32882297,608.23,607.18,1.29543463]
[1742106117243,0.32882297,608.23,607.19,1.29543463]
[1742106117452,0.32882297,608.23,607.2,1.29543463]
[1742106117747,0.32882297,608.23,607.21,1.29543463]
[1742106117946,0.32882297,608.23,607.2,1.14092405]
[1742106117947,0.32882297,608.23,607.22,1.29543463]
[1742106118147,0.32882297,608.23,607.23,0.99308037]
[1742106118348,0.32882297,608.23,607.24,0.99308037]
[1742106118545,0.32882297,608.23,607.25,0.99308037]
[1742106118743,0.32882297,608.23,607.26,0.99308037]
[1742106118948,0.32882297,608.23,607.27,0.99308037]
[1742106119147,0.32882297,608.23,607.28,2.13400442]
[1742106119347,0.32882297,608.23,607.29,0.99308037]
[1742106119548,0.32882297,608.23,607.3,0.99308037]
[1742106119745,0.32882297,608.23,607.31,0.99308037]
[1742106120051,0.32882297,608.23,607.29,1.14092405]
[1742106120246,0.32882297,608.23,607.32,1.14092405]
[1742106120447,0.32882297,608.23,607.33,0.9926293]
[1742106120748,0.32882297,608.23,607.34,2.13355335]
[1742106120948,0.32882297,608.23,607.35,0.9926293]
[1742106121149,0.32882297,608.23,607.36,0.9926293]
[1742106121448,0.32882297,608.23,607.37,0.9926293]
[1742106121649,0.32882297,608.23,607.38,0.9926293]
[1742106121849,0.32882297,608.23,607.39,0.9926293]
[1742106122051,0.32882297,608.23,607.4,0.9926293]
[1742106122350,0.32882297,608.23,607.41,0.9926293]
[1742106122552,0.32882297,608.23,607.42,0.9926293]
[1742106122749,0.32882297,608.23,607.23,2.415]
[1742106122944,0.32882297,608.23,607.24,0.99237981]
[1742106123149,0.32882297,608.23,607.25,0.99237981]
[1742106123352,0.32882297,608.23,607.26,1.29473241]
[1742106123553,0.32882297,608.23,607.27,1.29460617]
[1742106123854,0.32882297,608.23,607.28,0.99225357]
[1742106124046,0.32882297,608.23,607.29,0.99225357]
[1742106124847,0.32882297,608.23,607.3,1.13952824]
[1742106125148,0.32882297,608.23,607.31,0.99225357]
[1742106125348,0.32882297,608.23,607.32,0.99225357]
[1742106125548,0.32882297,608.23,607.33,0.99225357]
[1742106125753,0.32882297,608.23,607.34,0.99225357]
[1742106126054,0.32882297,608.23,607.35,0.99225357]
[1742106126247,0.32882297,608.23,607.36,0.99225357]
[1742106126450,0.32882297,608.23,607.37,0.99225357]
[1742106126646,0.32882297,608.23,607.38,0.99225357]
[1742106126849,0.32882297,608.23,607.39,0.99225357]
[1742106127053,0.32882297,608.23,607.4,0.99225357]
[1742106127248,0.32882297,608.23,607.41,0.99225357]
[1742106127456,0.32882297,608.23,607.42,0.99225357]
[1742106127655,0.32882297,608.23,607.43,0.99225357]
[1742106127855,0.32882297,608.23,607.44,0.99225357]
[1742106128056,0.32882297,608.23,607.23,2.415]
[1742106128257,0.32882297,608.23,607.24,1.62352267]
[1742106128457,0.32882297,608.23,607.25,1.29416361]
[1742106128655,0.32882297,608.23,607.26,1.29416361]
[1742106128856,0.32882297,608.23,607.27,1.29416361]
[1742106129156,0.32882297,608.23,607.28,1.29416361]
[1742106129357,0.32882297,608.23,607.29,1.29416361]
[1742106129657,0.32882297,608.23,607.3,2.43296108]
[1742106129861,0.32882297,608.23,607.31,1.29416361]
[1742106130051,0.32882297,608.23,607.32,0.99182458]
[1742106130257,0.32882297,608.23,607.33,0.99182458]
[1742106130456,2.51296556,608.58,607.34,0.99182458]
[1742106130656,0.32863926,608.57,607.35,0.99182458]
[1742106130857,0.32863926,608.57,607.36,2.13062205]
[1742106131052,0.32863926,608.57,607.37,0.99182458]
[1742106131256,0.32863926,608.57,607.38,0.99182458]
[1742106131457,0.32863926,608.57,607.39,0.99182458]
[1742106131657,0.32863926,608.57,607.4,0.99182458]
[1742106131855,0.32863926,608.57,607.41,0.99182458]
[1742106132058,0.32863926,608.57,607.42,0.99182458]
[1742106132257,0.32863926,608.57,607.43,0.99182458]
[1742106132455,0.32863926,608.57,607.44,0.99182458]
[1742106132659,0.32863926,608.57,607.45,0.99182458]
[1742106132857,0.32863926,608.57,607.46,0.99182458]
[1742106133054,0.32863926,608.57,607.47,0.99182458]
[1742106133258,0.32863926,608.57,607.48,0.99182458]
[1742106133456,0.32863926,608.57,607.24,0.32935906]
[1742106133659,0.32863926,608.57,607.25,1.293174]
[1742106133861,0.32863926,608.57,607.26,1.62252221]
[1742106134057,0.32863926,608.57,607.27,1.62251679]
[1742106134260,0.32863926,608.57,607.28,1.293174]
[1742106134460,0.32863926,608.57,607.29,1.293174]
[1742106134658,0.32863926,608.57,607.3,1.293174]
[1742106134863,0.32863926,608.57,607.31,1.293174]
[1742106135060,0.32863926,608.57,607.32,1.293174]
[1742106135264,0.32863926,608.57,607.33,1.293174]
[1742106135467,0.32863926,608.57,607.34,1.293174]
[1742106135766,0.32863926,608.57,607.35,1.293174]
[1742106135963,0.32863926,608.57,607.36,1.29281419]
[1742106136164,0.32863926,608.57,607.37,2.43059149]
[1742106136364,0.32863926,608.57,607.38,1.29281419]
[1742106136566,0.32863926,608.57,607.39,1.29281419]
[1742106136762,0.32863926,608.57,607.4,1.29281419]
[1742106136961,0.32863926,608.57,607.41,0.99050855]
[1742106137162,0.32863926,608.57,607.42,2.43057995]
[1742106137366,0.32863926,608.57,607.43,0.99050855]
[1742106137667,0.32863926,608.57,607.44,0.99050855]
[1742106137868,0.32863926,608.57,607.45,0.99050855]
[1742106138168,0.32863926,608.57,607.46,0.99050855]
[1742106138468,0.32863926,608.57,607.47,0.99050855]
[1742106138667,0.32863926,608.57,607.48,0.99050855]
[1742106138867,0.32863926,608.57,607.32,0.32931568]
[1742106139171,0.32863926,608.57,607.49,1.886]
[1742106144970,0.32863926,608.57,607.5,2.076]
[1742106145170,0.32863926,608.57,607.5,4.412]
[1742106149867,0.32863926,608.57,607.51,2.129]
[1742106153573,2.84160482,608.57,607.51,2.129]
[1742106155873,2.51296556,608.55,607.51,2.129]
[1742106157771,2.51296556,608.43,607.52,1.885]
[1742106159580,2.51296556,608.4,607.52,3.742]
[1742106160378,2.51296556,608.4,607.52,5.836]
[1742106162783,2.51296556,608.51,607.52,5.836]
[1742106164887,0.32863926,608.57,607.52,5.836]
[1742106164888,2.51296556,608.49,607.52,5.836]
[1742106166989,2.51296556,608.49,607.52,7.956]
[1742106167288,2.51296556,608.49,607.53,0.99115538]
[1742106167493,2.51296556,608.51,607.54,0.99137311]
[1742106167692,2.51296556,608.51,607.55,0.99137311]
[1742106167894,2.51296556,608.51,607.52,7.956]
[1742106169089,2.84163723,608.51,607.52,7.956]
[1742106169294,0.32867707,608.5,607.52,7.956]
[1742106178499,0.32867707,608.5,607.52,9.454]
[1742106181505,2.51296556,608.47,607.52,9.454]
[1742106181706,0.32869868,608.46,607.52,9.454]
[1742106183307,2.84166424,608.46,607.52,9.454]
[1742106187104,2.51296556,608.38,607.52,9.454]
[1742106189008,2.51296556,608.4,607.52,9.454]
[1742106191308,2.51296556,608.41,607.52,9.454]
[1742106191911,6.09699509,608.41,607.52,9.454]
[1742106192106,3.58402953,608.4,607.52,9.454]
[1742106192306,2.51296556,608.41,607.52,9.454]
[1742106192511,2.84169125,608.41,607.52,9.454]
[1742106193814,2.51296556,608.35,607.52,9.454]
[1742106195308,0.32876352,608.34,607.52,9.454]
[1742106195513,2.51296556,608.31,607.52,9.454]
[1742106197810,2.51296556,608.32,607.52,9.454]
[1742106199113,0.32876352,608.34,607.52,9.454]
[1742106245347,2.51296556,608.66,607.53,0.99408797]
[1742106245547,0.32859607,608.65,607.54,0.99408797]
[1742106245747,0.32859607,608.65,607.55,0.99408797]
[1742106245949,0.32859607,608.65,607.56,0.99389057]
[1742106246150,0.32859607,608.65,607.57,0.99389057]
[1742106246352,0.32859607,608.65,607.53,1.14124578]
[1742106246353,0.32859607,608.65,607.58,0.99389057]
[1742106246653,0.32859607,608.65,607.59,0.99389057]
[1742106246851,0.32859607,608.65,607.6,0.99389057]
[1742106247151,0.32859607,608.65,607.32,0.32931568]
[1742106247350,0.32859607,608.65,607.33,0.99339147]
[1742106247544,0.32859607,608.65,607.34,0.99339147]
[1742106247744,0.32859607,608.65,607.35,0.99339147]
[1742106247948,0.32859607,608.65,607.36,0.99351456]
[1742106248250,0.32859607,608.65,607.37,2.13432402]
[1742106248452,0.32859607,608.65,607.38,0.99351456]
[1742106248648,0.32859607,608.65,607.39,2.13432402]
[1742106248847,0.32859607,608.65,607.4,0.99351456]
[1742106249047,0.32859607,608.65,607.4,2.99451456]
[1742106249253,0.32859607,608.65,607.41,0.99351456]
[1742106249448,0.32859607,608.65,607.42,0.99351456]
[1742106249653,0.32859607,608.65,607.43,0.99351456]
[1742106249855,0.32859607,608.65,607.44,0.99351456]
[1742106250055,0.32859607,608.65,607.45,0.99351456]
[1742106250249,0.32859607,608.65,607.46,0.99351456]
[1742106250451,0.32859607,608.65,607.47,0.99351456]
[1742106250650,2.51296556,608.6,607.48,0.99351456]
[1742106250848,0.32862846,608.59,607.41,1.882]
[1742106251050,0.32862846,608.59,607.42,0.99349323]
[1742106251250,0.32862846,608.59,607.43,0.99349323]
[1742106251451,0.32862846,608.59,607.44,0.99349323]
[1742106251652,0.32862846,608.59,607.45,0.99349323]
[1742106251952,0.32862846,608.59,607.46,0.99349323]
[1742106252152,0.32862846,608.59,607.47,0.99349323]
[1742106252349,0.32862846,608.59,607.41,1.882]
[1742106252350,0.32862846,608.59,607.48,0.99349323]
[1742106252553,0.32862846,608.59,607.41,1.882]
[1742106252753,0.32862846,608.59,607.42,0.99346671]
[1742106252953,0.32862846,608.59,607.43,0.99346671]
[1742106253154,0.32862846,608.59,607.44,0.99346671]
[1742106253356,0.32862846,608.59,607.45,0.99346671]
[1742106253656,0.32862846,608.59,607.46,0.99346671]
[1742106253857,0.32862846,608.59,607.41,1.882]
[1742106254157,0.32862846,608.59,607.42,0.99345064]
[1742106254356,0.32862846,608.59,607.43,0.99345064]
[1742106254560,0.32862846,608.59,607.44,0.99345064]
[1742106254857,0.32862846,608.59,607.45,0.99345064]
[1742106255157,0.32862846,608.59,607.46,0.99345064]
[1742106255456,0.32862846,608.59,607.47,0.99345064]
[1742106255653,0.32862846,608.59,607.41,1.882]
[1742106255858,0.32862846,608.59,607.42,0.99358107]
[1742106256056,0.32862846,608.59,607.43,0.99358107]
[1742106256256,0.32862846,608.59,607.44,0.99358107]
[1742106256452,0.32862846,608.59,607.45,0.99358107]
[1742106256652,0.32862846,608.59,607.46,0.99358107]
[1742106256852,0.32862846,608.59,607.47,0.99358107]
[1742106257060,0.32862846,608.59,607.41,1.882]
[1742106257256,0.32862846,608.59,607.42,0.99365298]
[1742106257455,0.32862846,608.59,607.43,0.99365298]
[1742106257655,0.32862846,608.59,607.44,0.99365298]
[1742106257856,0.32862846,608.59,607.45,0.99365298]
[1742106258054,2.51296556,608.52,607.46,0.99365298]
[1742106258255,0.32867167,608.51,607.47,0.99365298]
[1742106258457,0.32867167,608.51,607.48,0.99365298]
[1742106258655,0.32867167,608.51,607.41,1.882]
[1742106258853,0.32867167,608.51,607.42,0.99375548]
[1742106259055,0.32867167,608.51,607.43,0.99375548]
[1742106259257,0.32867167,608.51,607.44,0.99375548]
[1742106259459,0.32867167,608.51,607.45,0.99375548]
[1742106259760,0.32867167,608.51,607.46,0.99375548]
[1742106259962,0.32867167,608.51,607.47,0.99375548]
[1742106260261,0.32867167,608.51,607.48,0.99375548]
[1742106260463,0.32867167,608.51,607.49,0.99375548]
[1742106260658,0.32867167,608.51,607.5,0.99375548]
[1742106260858,0.32867167,608.51,607.51,0.99375548]
[1742106261060,0.32867167,608.51,607.52,0.99375548]
[1742106261260,0.32867167,608.51,607.53,0.99375548]
[1742106261461,0.32867167,608.51,607.54,0.99375548]
[1742106261660,0.32867167,608.51,607.55,0.99375548]
[1742106261861,0.32867167,608.51,607.56,2.13444646]
[1742106262162,0.32867167,608.51,607.57,0.99375548]
[1742106262362,0.32867167,608.51,607.58,0.99375548]
[1742106262562,0.32867167,608.51,607.56,1.14069098]
[1742106262757,0.32867167,608.51,607.57,0.99296837]
[1742106262959,0.32867167,608.51,607.58,0.99296837]
[1742106263258,0.32867167,608.51,607.56,1.471]
[1742106263456,0.32867167,608.51,607.57,0.99285645]
[1742106263655,0.32867167,608.51,607.58,0.99285645]
[1742106263860,0.32867167,608.51,607.56,1.471]
[1742106264158,0.32867167,608.51,607.57,0.99285514]
[1742106264363,0.32867167,608.51,607.58,0.99285514]
[1742106264557,0.32867167,608.51,607.56,1.471]
[1742106274861,0.32867167,608.51,607.56,3.352]
[1742106278074,0.32867167,608.51,607.56,4.875]
[1742106282273,0.32867167,608.51,607.56,7.34]
[1742106284373,0.32867167,608.51,607.57,0.99246468]
[1742106284978,0.32867167,608.51,607.56,7.34]
[1742106291983,0.32867167,608.51,607.56,8.914]
[1742106310198,0.32867167,608.51,607.57,0.99404979]
[1742106310403,0.32867167,608.51,607.58,0.99404979]
[1742106310597,0.32867167,608.51,607.59,0.99404979]
[1742106310801,0.32867167,608.51,607.6,0.99404979]
[1742106311004,0.32867167,608.51,607.61,0.99404979]
[1742106311204,0.32867167,608.51,607.62,0.99404979]
[1742106311403,0.32867167,608.51,607.63,0.99404979]
[1742106311602,0.32867167,608.51,607.64,0.99404979]
[1742106311800,0.32867167,608.51,607.65,0.99404979]
[1742106312004,0.32867167,608.51,607.66,0.99404979]
[1742106312199,0.32867167,608.51,607.67,0.99404979]
[1742106312404,0.32867167,608.51,607.56,3.045]
[1742106312605,0.32867167,608.51,607.57,0.99339454]
[1742106312805,0.32867167,608.51,607.58,0.99339454]
[1742106312999,0.32867167,608.51,607.59,0.99339454]
[1742106313202,0.32867167,608.51,607.6,0.99339454]
[1742106313401,0.32867167,608.51,607.61,0.99339454]
[1742106313701,0.32867167,608.51,607.62,3.01739454]
[1742106313901,0.32867167,608.51,607.63,0.99339454]
[1742106314105,0.32867167,608.51,607.64,0.99339454]
[1742106314305,0.32867167,608.51,607.65,0.99339454]
[1742106314504,0.32867167,608.51,607.66,0.99339454]
[1742106314700,0.32867167,608.51,607.67,0.99339454]
[1742106314900,0.32867167,608.51,607.64,1.667]
[1742106315104,0.32867167,608.51,607.65,0.99318416]
[1742106315406,0.32867167,608.51,607.66,0.99318416]
[1742106315707,0.32867167,608.51,607.67,0.99318416]
[1742106315901,0.32867167,608.51,607.64,1.667]
[1742106316100,0.32867167,608.51,607.65,0.99309017]
[1742106316304,0.32867167,608.51,607.66,0.99309017]
[1742106316602,0.32867167,608.51,607.67,0.99309017]
[1742106316803,0.32867167,608.51,607.64,1.667]
[1742106317000,0.32867167,608.51,607.65,0.99301013]
[1742106317201,0.32867167,608.51,607.66,0.99301013]
[1742106317405,0.32867167,608.51,607.64,1.667]
[1742106317602,0.32867167,608.51,607.65,0.99295072]
[1742106317801,0.32867167,608.51,607.66,0.99295072]
[1742106318102,0.32867167,608.51,607.64,1.667]
[1742106318301,0.32867167,608.51,607.65,0.992968]
[1742106318502,0.32867167,608.51,607.66,0.992968]
[1742106318705,0.32867167,608.51,607.64,1.667]
[1742106318907,0.32867167,608.51,607.65,0.99291166]
[1742106319104,0.32867167,608.51,607.66,0.99291166]
[1742106319305,0.32867167,608.51,607.64,1.667]
[1742106319505,0.32867167,608.51,607.65,0.99284453]
[1742106319701,0.32867167,608.51,607.64,1.667]
[1742106319909,0.32867167,608.51,607.65,0.99284453]
[1742106320108,0.32867167,608.51,607.64,1.667]
[1742106320408,0.32867167,608.51,607.65,0.99284956]
[1742106320606,0.32867167,608.51,607.64,1.667]
[1742106320806,0.32867167,608.51,607.65,0.99280021]
[1742106321006,0.32867167,608.51,607.64,1.667]
[1742106322910,0.32867167,608.51,607.65,2.038]
[1742106330819,0.32867167,608.51,607.65,3.761]
[1742106331517,0.32867167,608.51,607.65,5.93]
[1742106336718,0.32867167,608.51,607.65,7.437]
[1742106337717,0.32867167,608.51,607.65,9.008]
[1742106339921,2.51296556,608.5,607.65,9.008]
[1742106341717,0.32867167,608.51,607.65,9.008]
[1742106354238,2.51296556,608.41,607.65,9.008]
[1742106354436,0.32873109,608.4,607.65,9.008]
[1742106356234,2.51296556,608.32,607.65,9.008]
[1742106357536,2.51296556,608.34,607.65,9.008]
[1742106357731,0.32876892,608.33,607.65,9.008]
[1742106359233,6.43307381,608.33,607.65,9.008]
[1742106359436,3.59133933,608.32,607.65,9.008]
[1742106361447,0.32876892,608.33,607.65,9.008]
[1742106363541,3.92010825,608.33,607.65,9.008]
[1742106363741,3.59133933,608.32,607.65,9.008]
[1742106364033,3.59133933,608.31,607.65,9.008]
[1742106364233,3.59133933,608.3,607.65,9.008]
[1742106364439,0.32876892,608.33,607.65,9.008]
[1742106398771,2.51296556,608.3,607.65,9.008]
[1742106399071,0.32879054,608.29,607.65,9.008]
[1742106402274,2.51296556,608.23,607.65,9.008]
[1742106402575,0.32882838,608.22,607.65,9.008]
[1742106409782,2.51296556,608.18,607.65,9.008]
[1742106409973,0.32885541,608.17,607.65,6.839]
[1742106410176,0.32885541,608.17,606.25,1.22974189]